bitfinex-derivatives/quotes_SOLF0:USTF0_20241231
["timestamp","ask_amount","ask_price","bid_price","bid_amount"]
[1735667497526,5.7988,195.32,195.16,3.76]
[1735667497527,1.28293124,195.24,195.16,3.76]
[1735667497732,1.28293124,195.23,195.21,2.5651]
[1735667497934,2.5644,195.27,195.21,2.5651]
[1735667498239,3.91972715,195.26,195.21,2.5651]
[1735667498426,1.28295489,195.25,195.16,3.76]
[1735667498630,1.28295489,195.24,195.16,3.76]
[1735667498831,1.28295489,195.23,195.16,3.76]
[1735667499035,1.28295489,195.22,195.16,3.76]
[1735667499237,1.28295489,195.21,195.16,6.3256]
[1735667499536,1.28295489,195.2,195.16,3.76]
[1735667499737,2.5647,195.24,195.16,6.3256]
[1735667499934,3.92098413,195.23,195.16,6.3256]
[1735667500130,1.9135,195.27,195.16,6.3256]
[1735667500335,2.5649,195.23,195.16,6.3256]
[1735667500536,1.28306982,195.22,195.16,6.3256]
[1735667500727,1.28306391,195.21,195.16,6.3256]
[1735667500933,1.9135,195.27,195.16,6.3256]
[1735667501134,3.9223667,195.26,195.16,6.3256]
[1735667501334,1.9135,195.27,195.16,6.3256]
[1735667501335,3.9223667,195.25,195.17,2.5654]
[1735667501634,1.28305241,195.24,195.16,3.76]
[1735667501839,1.28305241,195.23,195.19,2.5653]
[1735667502041,1.9135,195.27,195.16,3.76]
[1735667502236,1.28283007,195.26,195.18,20.27927999]
[1735667502437,2.0388,195.32,195.21,2.5649]
[1735667502734,2.5643,195.27,195.22,3.76]
[1735667502945,1.28277223,195.26,195.22,3.76]
[1735667503142,1.28284491,195.25,195.22,3.76]
[1735667503343,2.0388,195.32,195.22,3.76]
[1735667503538,2.0388,195.32,195.22,6.3249]
[1735667503539,3.92669073,195.31,195.22,6.3249]
[1735667503844,3.92669073,195.3,195.22,3.76]
[1735667504037,3.92669073,195.29,195.22,3.76]
[1735667504234,3.92831678,195.28,195.22,3.76]
[1735667504442,3.92831678,195.27,195.22,3.76]
[1735667504643,3.92831678,195.26,195.22,3.76]
[1735667504855,1.28285839,195.25,195.22,3.76]
[1735667505136,2.0388,195.32,195.22,3.76]
[1735667505341,3.92800611,195.31,195.23,2.5647]
[1735667505645,3.92800611,195.3,195.22,3.76]
[1735667505838,3.92923981,195.29,195.22,3.76]
[1735667506137,2.0388,195.32,195.22,3.76]
[1735667506333,2.5647,195.23,195.22,3.76]
[1735667506540,2.0388,195.32,195.22,3.76]
[1735667506741,1.28304923,195.23,195.22,3.76]
[1735667507244,1.28304923,195.23,195.2,3.76]
[1735667507443,2.5649,195.23,195.2,3.76]
[1735667507942,2.0388,195.32,195.19,3.76]
[1735667508149,2.565,195.21,195.19,3.76]
[1735667508447,2.0388,195.32,195.19,3.76]
[1735667508640,2.565,195.22,195.19,3.76]
[1735667509443,3.76,195.31,195.2,2.5651]
[1735667509643,3.92994355,195.3,195.19,3.76]
[1735667509945,2.5647,195.24,195.19,6.3252]
[1735667510639,2.0388,195.32,195.19,3.76]
[1735667510836,3.93065514,195.31,195.19,3.76]
[1735667511040,2.5643,195.27,195.19,3.76]
[1735667511343,3.93022512,195.26,195.19,3.76]
[1735667511542,3.9297957,195.25,195.13,3.76]
[1735667511842,3.9297957,195.24,195.13,3.76]
[1735667512056,3.9297957,195.23,195.13,3.76]
[1735667512237,1.28282588,195.22,195.13,3.76]
[1735667513045,1.28282588,195.22,195.1,22.28107999]
[1735667513342,1.28282588,195.22,195.14,3.76]
[1735667513544,2.5653,195.19,195.15,2.5658]
[1735667513743,1.9231,195.23,195.14,3.76]
[1735667513938,2.5651,195.21,195.17,2.5655]
[1735667514242,2.5651,195.21,195.14,3.76]
[1735667514545,2.5651,195.21,195.16,2.5657]
[1735667514848,1.9231,195.23,195.14,3.76]
[1735667515041,1.9231,195.23,195.14,6.3258]
[1735667515243,1.9231,195.23,195.14,3.76]
[1735667515644,1.9231,195.23,195.18,2.5653]
[1735667515940,1.9231,195.23,195.14,3.76]
[1735667516945,2.5652,195.2,195.14,3.76]
[1735667517840,2.5652,195.2,195.16,2.5657]
[1735667518647,2.5654,195.19,195.14,2.5658]
[1735667518836,1.9231,195.23,195.15,3.76]
[1735667519043,1.9231,195.23,195.14,3.76]
[1735667519348,3.2468279,195.22,195.09,1.9122]
[1735667519552,3.92514905,195.21,195.1,3.76]
[1735667519851,1.9231,195.23,195.14,20.27927999]
[1735667520044,2.565,195.21,195.17,2.5654]
[1735667520246,1.9231,195.23,195.17,3.76]
[1735667520646,1.9923,195.24,195.17,3.76]
[1735667520948,1.965,195.3,195.17,3.76]
[1735667521147,2.5646,195.24,195.2,2.5651]
[1735667521350,1.965,195.3,195.18,20.27927999]
[1735667521546,20.27927999,195.4,195.18,24.32137999]
[1735667521751,5.85643129,195.35,195.18,24.32137999]
[1735667522051,3.92653129,195.34,195.18,24.32137999]
[1735667522252,3.92653129,195.33,195.18,24.32137999]
[1735667522449,1.28273482,195.32,195.18,24.32137999]
[1735667522643,1.9299,195.35,195.22,20.27927999]
[1735667522849,3.8316,195.36,195.23,3.76]
[1735667523047,1.28249202,195.35,195.23,5.7184]
[1735667523251,2.5635,195.33,195.27,2.5641]
[1735667523752,1.8681,195.36,195.23,5.7184]
[1735667523943,1.28245964,195.35,195.26,20.27927999]
[1735667524148,1.864,195.39,195.26,20.27927999]
[1735667524448,2.5644,195.26,195.23,3.76]
[1735667524650,20.27927999,195.34,195.23,3.76]
[1735667524850,5.90142857,195.33,195.23,3.76]
[1735667525148,2.5646,195.24,195.23,3.76]
[1735667525744,2.5645,195.25,195.23,3.76]
[1735667525950,1.9728,195.33,195.23,3.76]
[1735667526255,2.5642,195.28,195.23,6.3247]
[1735667526753,2.5642,195.27,195.23,3.76]
[1735667527351,1.9728,195.33,195.26,2.5643]
[1735667527555,1.864,195.39,195.23,3.76]
[1735667527756,3.92839622,195.38,195.23,3.76]
[1735667527958,2.5638,195.31,195.26,2.5643]
[1735667528551,3.7541,195.39,195.25,20.27927999]
[1735667528751,1.28227634,195.38,195.25,20.27927999]
[1735667528948,1.28227634,195.37,195.25,20.27927999]
[1735667529151,3.7541,195.39,195.25,20.27927999]
[1735667529152,2.5632,195.35,195.29,2.5639]
[1735667529455,3.7541,195.39,195.3,3.76]
[1735667529651,24.03927999,195.44,195.3,3.76]
[1735667529847,2.5632,195.35,195.3,6.3238]
[1735667530048,9.79927053,195.43,195.3,3.76]
[1735667530049,5.8707,195.43,195.3,3.76]
[1735667530259,3.92851343,195.42,195.3,3.76]
[1735667530455,3.92851343,195.41,195.3,3.76]
[1735667530654,3.92851343,195.4,195.3,3.76]
[1735667530953,1.28220563,195.39,195.3,3.76]
[1735667531159,5.8707,195.43,195.3,3.76]
[1735667531456,3.92850599,195.42,195.3,3.76]
[1735667531655,3.92850599,195.41,195.3,3.76]
[1735667531858,1.28206821,195.4,195.3,3.76]
[1735667532053,1.28212586,195.39,195.3,3.76]
[1735667532250,5.8707,195.43,195.3,3.76]
[1735667532456,2.563,195.36,195.32,2.5636]
[1735667532654,5.8707,195.43,195.25,20.27927999]
[1735667532858,3.93007288,195.42,195.26,3.76]
[1735667533057,2.5634,195.34,195.3,2.5638]
[1735667533357,5.8707,195.43,195.26,3.76]
[1735667533659,20.27927999,195.37,195.21,48.68721365]
[1735667533962,7.68995067,195.36,195.23,3.76]
[1735667534153,2.5636,195.32,195.23,6.3247]
[1735667534353,20.27927999,195.3,195.21,28.40793366]
[1735667534550,1.28223981,195.29,195.18,7.8021]
[1735667534754,2.5649,195.22,195.18,10.3675]
[1735667534959,22.31757999,195.3,195.18,3.76]
[1735667535257,2.64665505,195.29,195.18,3.76]
[1735667535460,3.92969972,195.28,195.18,3.76]
[1735667535657,3.92969972,195.27,195.18,3.76]
[1735667535853,1.28304467,195.26,195.18,3.76]
[1735667536056,1.28304467,195.25,195.19,2.5651]
[1735667536259,1.28304467,195.24,195.19,2.5651]
[1735667536457,22.31757999,195.3,195.19,2.5651]
[1735667536657,3.93302581,195.29,195.19,2.5651]
[1735667536858,3.93302581,195.28,195.19,2.5651]
[1735667537058,3.93302581,195.27,195.18,6.3254]
[1735667537262,1.28300315,195.26,195.18,2.5654]
[1735667537456,1.28300315,195.25,195.18,6.3254]
[1735667537657,1.28300315,195.24,195.19,2.5653]
[1735667537860,22.31757999,195.3,195.18,3.76]
[1735667538058,3.9352565,195.29,195.18,3.76]
[1735667538261,2.5649,195.22,195.18,3.76]
[1735667539466,1.28297324,195.21,195.18,3.76]
[1735667539655,2.5649,195.22,195.18,3.76]
[1735667539859,1.28297324,195.21,195.18,3.76]
[1735667540062,2.5649,195.22,195.18,3.76]
[1735667540261,1.28297324,195.21,195.18,6.3254]
[1735667540462,2.5649,195.22,195.18,6.3254]
[1735667540759,2.5653,195.19,195.17,3.76]
[1735667540963,20.27927999,195.23,195.11,7.10198341]
[1735667541166,3.94022604,195.22,195.11,10.86198341]
[1735667541368,2.5658,195.16,195.11,13.42818341]
[1735667541759,2.5652,195.2,195.15,2.5658]
[1735667541962,1.28335614,195.19,195.15,2.5658]
[1735667542164,1.28335614,195.18,195.15,2.5658]
[1735667542360,2.5652,195.2,195.15,2.5658]
[1735667542668,1.28320445,195.19,195.11,24.03927999]
[1735667542868,20.27927999,195.29,195.11,24.03927999]
[1735667543061,2.5645,195.26,195.14,20.27927999]
[1735667543264,2.0383,195.3,195.14,20.27927999]
[1735667543265,1.28306212,195.25,195.14,20.27927999]
[1735667543486,1.28306212,195.24,195.15,1.8726]
[1735667543701,2.0383,195.3,195.15,1.8726]
[1735667543702,1.28306212,195.23,195.16,1.8815]
[1735667543877,1.28306212,195.22,195.19,2.5652]
[1735667544078,1.28306212,195.21,195.17,3.76]
[1735667544381,1.28308875,195.2,195.17,6.3254]
[1735667544580,2.5649,195.22,195.17,3.76]
[1735667544783,1.28301377,195.21,195.17,3.76]
[1735667544980,2.5649,195.22,195.17,3.76]
[1735667545184,1.28302241,195.21,195.17,3.76]
[1735667545385,2.5649,195.22,195.17,3.76]
[1735667545583,1.28305999,195.21,195.18,2.5654]
[1735667545786,2.5649,195.22,195.18,2.5654]
[1735667545989,1.28300796,195.21,195.18,2.5654]
[1735667546193,20.27927999,195.27,195.17,3.76]
[1735667546498,3.94115579,195.26,195.17,3.76]
[1735667546787,2.0383,195.3,195.18,2.5654]
[1735667546788,2.5648,195.23,195.18,2.5654]
[1735667546990,1.28301843,195.22,195.17,3.76]
[1735667547204,22.31757999,195.3,195.17,3.76]
[1735667547389,3.94145938,195.29,195.17,3.76]
[1735667547589,3.94145938,195.28,195.17,3.76]
[1735667547890,3.94145938,195.27,195.17,3.76]
[1735667548188,2.5645,195.25,195.2,2.565]
[1735667548487,1.28303931,195.24,195.2,2.565]
[1735667548687,2.5645,195.25,195.2,2.565]
[1735667548879,2.5648,195.23,195.19,2.5652]
[1735667549174,1.28295777,195.22,195.19,3.76]
[1735667549368,1.28295777,195.21,195.19,3.76]
[1735667549670,20.27927999,195.27,195.19,3.76]
[1735667549971,3.94133045,195.26,195.19,3.76]
[1735667550186,20.27927999,195.24,195.11,1.9801]
[1735667550374,3.94123604,195.23,195.1,9.08078341]
[1735667550564,3.94123604,195.22,195.12,3.76]
[1735667550799,20.27927999,195.24,195.12,3.76]
[1735667550973,1.28337955,195.23,195.12,3.76]
[1735667551170,3.94082876,195.22,195.12,3.76]
[1735667551372,2.5657,195.17,195.12,6.3262]
[1735667551876,1.28331485,195.16,195.12,3.76]
[1735667552067,1.28356517,195.15,195.12,3.76]
[1735667552265,20.27927999,195.21,195.12,3.76]
[1735667552486,2.566,195.14,195.12,3.76]
[1735667552870,2.566,195.14,195.1,2.5664]
[1735667553070,2.566,195.14,195.11,3.76]
[1735667553387,2.566,195.14,195.11,6.3263]
[1735667553576,2.0124,195.2,195.09,3.76]
[1735667553771,20.27927999,195.18,195.09,3.76]
[1735667553968,2.5664,195.11,195.09,3.76]
[1735667554173,6.072,195.2,195.09,3.76]
[1735667554379,3.93742244,195.19,195.09,3.76]
[1735667554571,3.93742244,195.18,195.09,3.76]
[1735667554876,2.5658,195.16,195.09,3.76]
[1735667555082,1.28374095,195.15,195.11,2.5663]
[1735667555375,6.072,195.2,195.11,2.5663]
[1735667555575,3.93658872,195.19,195.11,2.5663]
[1735667555772,3.93658872,195.18,195.11,2.5663]
[1735667555979,6.072,195.2,195.12,2.5662]
[1735667555980,2.5658,195.16,195.12,2.5662]
[1735667556479,2.5658,195.15,195.12,2.5662]
[1735667557179,2.5657,195.16,195.12,2.5662]
[1735667557980,2.5658,195.15,195.12,2.5662]
[1735667559782,6.072,195.2,195.12,2.5662]
[1735667559978,3.93421627,195.19,195.1,20.27927999]
[1735667560178,1.28355553,195.18,195.1,20.27927999]
[1735667560378,12.62422879,195.25,195.12,12.62422879]
[1735667560575,2.5654,195.19,195.12,12.62422879]
[1735667560775,1.28338586,195.18,195.12,12.62422879]
[1735667561076,2.5654,195.19,195.14,2.5658]
[1735667561272,2.5654,195.19,195.15,3.76]
[1735667561571,12.62422879,195.26,195.18,2.5654]
[1735667561873,3.93403624,195.25,195.18,2.5654]
[1735667562068,12.62422879,195.26,195.18,2.5654]
[1735667562069,2.565,195.22,195.18,2.5654]
[1735667562776,2.565,195.22,195.15,3.76]
[1735667562979,5.7622,195.27,195.15,3.76]
[1735667563277,8.95211379,195.39,195.2,20.19604886]
[1735667563578,2.5641,195.28,195.21,3.76]
[1735667564781,2.5641,195.28,195.23,2.5647]
[1735667564980,2.5641,195.28,195.21,3.76]
[1735667564981,2.5645,195.25,195.21,3.76]
[1735667565381,20.19604886,195.33,195.21,3.76]
[1735667565581,20.19604886,195.33,195.22,2.5648]
[1735667565582,2.5644,195.26,195.22,2.5648]
[1735667565883,20.19604886,195.33,195.21,3.76]
[1735667566083,3.93495194,195.32,195.21,3.76]
[1735667566281,2.5643,195.27,195.23,2.5647]
[1735667566783,20.19604886,195.33,195.23,2.5647]
[1735667566980,20.19604886,195.33,195.21,3.76]
[1735667566981,2.5644,195.26,195.22,2.5648]
[1735667567176,20.19604886,195.33,195.22,2.5648]
[1735667567380,2.5647,195.24,195.21,3.76]
[1735667567682,20.19604886,195.3,195.21,3.76]
[1735667567881,3.9348967,195.29,195.21,3.76]
[1735667568082,2.5645,195.26,195.22,2.5649]
[1735667568276,2.5645,195.26,195.21,3.76]
[1735667568476,20.19604886,195.33,195.21,3.76]
[1735667568778,2.5642,195.28,195.24,2.5646]
[1735667568974,1.9121,195.35,195.21,3.76]
[1735667569179,2.5642,195.27,195.21,3.76]
[1735667569380,2.65308051,195.34,195.21,3.76]
[1735667569579,3.93625956,195.33,195.21,3.76]
[1735667569876,2.5641,195.29,195.25,2.5645]
[1735667570077,1.9121,195.35,195.21,3.76]
[1735667570383,1.9121,195.35,195.23,2.5647]
[1735667570384,2.5643,195.27,195.23,2.5647]
[1735667572180,1.9121,195.35,195.19,3.9339]
[1735667572382,20.19604886,195.32,195.17,7.10198341]
[1735667572585,3.93670658,195.31,195.18,3.76]
[1735667572884,2.5645,195.25,195.2,2.565]
[1735667573279,2.5646,195.24,195.2,2.565]
[1735667573481,2.5646,195.24,195.14,84.59439909]
[1735667573482,20.19604886,195.28,195.14,84.59439909]
[1735667573785,5.94466647,195.27,195.15,3.76]
[1735667573980,3.93626647,195.26,195.15,3.76]
[1735667574282,3.93626647,195.25,195.14,64.39835023]
[1735667574476,1.28296388,195.24,195.15,3.76]
[1735667574678,3.9557,195.27,195.15,3.76]
[1735667574985,1.28288435,195.26,195.15,3.76]
[1735667575187,1.28288496,195.25,195.21,2.565]
[1735667575387,23.95604886,195.32,195.22,3.76]
[1735667575593,3.9392026,195.31,195.22,3.76]
[1735667575780,3.9392026,195.3,195.22,3.76]
[1735667575981,2.5646,195.25,195.22,3.76]
[1735667576590,23.95604886,195.32,195.14,77.49241568]
[1735667576795,20.19604886,195.29,195.15,3.76]
[1735667576994,3.9406943,195.28,195.15,3.76]
[1735667577198,3.9406943,195.27,195.15,3.76]
[1735667577497,3.9406943,195.26,195.15,3.76]
[1735667577800,3.9406943,195.25,195.16,3.76]
[1735667577996,3.94195647,195.24,195.16,3.76]
[1735667578197,3.94195647,195.23,195.16,3.76]
[1735667578401,1.28326899,195.22,195.16,3.76]
[1735667578600,3.8918,195.25,195.16,3.76]
[1735667578803,2.5649,195.22,195.19,2.5653]
[1735667578997,3.8918,195.25,195.16,3.76]
[1735667579302,1.28297069,195.24,195.16,3.76]
[1735667579501,1.28297069,195.23,195.16,3.76]
[1735667579701,20.19604886,195.29,195.19,2.5652]
[1735667579898,3.94411075,195.28,195.19,2.5652]
[1735667580099,3.94411075,195.27,195.19,2.5652]
[1735667580397,3.94395173,195.26,195.16,3.76]
[1735667580601,3.94395173,195.25,195.16,3.76]
[1735667580816,1.28297623,195.24,195.16,3.76]
[1735667581096,3.9436135,195.23,195.16,3.76]
[1735667581303,1.28296749,195.22,195.16,3.76]
[1735667581504,2.5646,195.25,195.16,3.76]
[1735667581693,1.28296639,195.24,195.16,3.76]
[1735667581896,1.28296639,195.23,195.16,3.76]
[1735667582103,2.5646,195.25,195.2,2.565]
[1735667582405,1.28295422,195.24,195.2,2.565]
[1735667582598,2.5643,195.27,195.23,2.5646]
[1735667582792,1.28283717,195.26,195.24,3.76]
[1735667582997,24.06194886,195.33,195.24,3.76]
[1735667582998,1.28283717,195.25,195.24,3.76]
[1735667583204,7.10617183,195.4,195.24,3.76]
[1735667583404,3.94227041,195.38,195.24,3.76]
[1735667583703,3.94227041,195.37,195.25,20.19604886]
[1735667583897,3.94227041,195.36,195.26,3.934]
[1735667584098,3.94227041,195.35,195.26,3.934]
[1735667584406,1.2825113,195.34,195.28,2.564]
[1735667584603,2.5632,195.35,195.26,3.934]
[1735667585001,2.5632,195.35,195.3,2.5637]
[1735667585207,2.5632,195.35,195.31,3.76]
[1735667588105,2.5632,195.35,195.31,6.3236]
[1735667589501,2.563,195.37,195.31,3.76]
[1735667590001,1.9078,195.46,195.32,20.19604886]
[1735667590206,2.5622,195.43,195.32,20.19604886]
[1735667590409,1.9078,195.46,195.36,20.19604886]
[1735667590706,1.9078,195.46,195.37,3.74]
[1735667591204,2.5619,195.45,195.4,2.5624]
[1735667592102,2.5619,195.45,195.41,2.5623]
[1735667592500,2.5614,195.49,195.37,3.74]
[1735667592700,2.0502,195.52,195.4,20.19604886]
[1735667593007,2.5609,195.52,195.4,20.19604886]
[1735667593199,1.8986,195.58,195.4,20.19604886]
[1735667593398,2.64555619,195.57,195.44,20.19604886]
[1735667593602,1.8986,195.58,195.45,3.74]
[1735667594899,1.8986,195.58,195.44,20.19604886]
[1735667595111,1.8986,195.58,195.45,3.74]
[1735667595413,1.8986,195.58,195.48,20.19604886]
[1735667595802,1.8986,195.58,195.48,2.5613]
[1735667596002,1.8986,195.58,195.48,3.74]
[1735667596212,2.5606,195.55,195.48,3.74]
[1735667596412,1.8986,195.58,195.48,3.74]
[1735667596915,2.5606,195.55,195.5,2.5612]
[1735667597702,33.54058734,195.75,195.52,20.19604886]
[1735667597930,3.8997,195.67,195.52,20.19604886]
[1735667598316,1.9149,195.67,195.53,1.9474]
[1735667598511,1.9149,195.67,195.54,3.74]
[1735667598716,2.5591,195.66,195.6,2.5598]
[1735667599009,4.0197,195.71,195.61,3.74]
[1735667599209,2.5586,195.7,195.64,2.5594]
[1735667599514,1.9149,195.75,195.61,3.74]
[1735667600008,20.19604886,195.77,195.63,2.5595]
[1735667600313,20.19604886,195.83,195.64,20.19604886]
[1735667600513,5.8833,195.82,195.64,20.19604886]
[1735667600915,2.5577,195.77,195.7,2.5587]
[1735667601117,2.5577,195.77,195.71,3.74]
[1735667601512,5.8833,195.82,195.71,3.74]
[1735667601712,2.5579,195.76,195.71,3.74]
[1735667602411,5.8833,195.82,195.71,3.74]
[1735667602616,20.19604886,195.8,195.71,3.74]
[1735667603419,2.5587,195.7,195.64,2.5595]
[1735667603617,20.19604886,195.8,195.65,3.74]
[1735667604020,2.558,195.76,195.67,22.75504886]
[1735667604320,5.8833,195.82,195.67,20.19604886]
[1735667604821,2.5575,195.8,195.68,0.9404108]
[1735667605021,2.5575,195.8,195.67,20.19604886]
[1735667605223,2.5575,195.8,195.73,2.5584]
[1735667605525,5.7936,195.86,195.74,3.74]
[1735667605822,2.60330037,195.85,195.74,3.74]
[1735667606016,2.60330037,195.84,195.74,3.74]
[1735667606222,2.5576,195.79,195.74,3.74]
[1735667606422,5.7936,195.86,195.74,3.74]
[1735667606622,2.60087665,195.85,195.75,3.74]
[1735667606822,2.60087665,195.84,195.76,3.74]
[1735667607025,22.79692551,195.83,195.67,22.75504886]
[1735667607219,2.60087665,195.82,195.68,3.74]
[1735667607424,2.60087665,195.81,195.69,3.74]
[1735667607628,20.19604886,195.83,195.69,3.74]
[1735667607925,2.59917511,195.82,195.69,3.74]
[1735667608115,2.59917511,195.81,195.69,3.74]
[1735667608322,2.5584,195.74,195.7,3.74]
[1735667609120,20.19604886,195.83,195.7,3.74]
[1735667609424,20.19604886,195.83,195.7,6.2987]
[1735667609425,2.59755515,195.82,195.7,6.2987]
[1735667609621,20.19604886,195.83,195.7,6.2987]
[1735667609819,2.5581,195.76,195.7,6.2987]
[1735667610824,2.5582,195.75,195.7,6.2987]
[1735667611825,20.19604886,195.83,195.7,3.74]
[1735667612127,20.19604886,195.88,195.71,23.93604886]
[1735667612328,2.5583,195.74,195.72,3.74]
[1735667612527,24.12714886,195.85,195.73,3.74]
[1735667612728,2.59343676,195.84,195.73,3.74]
[1735667612930,2.558,195.76,195.73,3.74]
[1735667613230,3.9311,195.85,195.73,3.74]
[1735667613427,2.558,195.76,195.73,3.74]
[1735667613634,3.9311,195.85,195.73,3.74]
[1735667614331,2.5576,195.8,195.75,2.5581]
[1735667614532,3.9311,195.85,195.73,3.74]
[1735667615128,2.5573,195.82,195.73,3.74]
[1735667615327,3.9311,195.85,195.73,3.74]
[1735667615531,3.9311,195.85,195.74,3.74]
[1735667615835,20.19604886,195.83,195.74,3.74]
[1735667616034,3.9311,195.85,195.52,2.21667092]
[1735667616035,15.43,195.82,195.52,2.21667092]
[1735667616228,15.43,195.82,195.45,223.42468734]
[1735667616229,37.19604886,195.56,195.45,28.42468734]
[1735667616429,20.19604886,195.5,195.45,28.42468734]
[1735667616629,2.5618,195.47,195.41,28.42468734]
[1735667616830,5.8866,195.55,195.41,28.42468734]
[1735667617032,26.08264886,195.55,195.41,28.42468734]
[1735667617228,5.8866,195.55,195.41,28.42468734]
[1735667617640,2.5611,195.53,195.44,2.5621]
[1735667617927,5.8866,195.55,195.4,20.19604886]
[1735667618236,5.8866,195.55,195.41,3.74]
[1735667618434,32.73562567,195.53,195.42,3.74]
[1735667618635,32.73562567,195.53,195.43,3.74]
[1735667618859,5.8866,195.55,195.43,3.74]
[1735667618860,2.5609,195.54,195.44,2.5621]
[1735667619136,2.5609,195.54,195.43,3.74]
[1735667620539,2.5609,195.54,195.45,2.562]
[1735667621442,5.8866,195.55,195.47,2.5617]
[1735667621638,2.0077,195.55,195.43,36.47562567]
[1735667621842,32.73562567,195.57,195.43,36.47562567]
[1735667622544,2.5606,195.56,195.43,36.47562567]
[1735667622741,32.73562567,195.61,195.43,36.47562567]
[1735667623144,2.5605,195.57,195.49,2.5615]
[1735667623445,2.5605,195.57,195.5,3.74]
[1735667623645,32.73562567,195.61,195.5,3.74]
[1735667623847,2.5606,195.56,195.5,3.74]
[1735667625845,32.73562567,195.61,195.5,3.74]
[1735667626051,2.61127302,195.6,195.5,3.74]
[1735667626252,32.73562567,195.61,195.5,3.74]
[1735667627450,2.5608,195.55,195.5,3.74]
[1735667628244,2.5606,195.57,195.5,3.74]
[1735667629156,32.73562567,195.61,195.5,3.74]
[1735667629352,32.73562567,195.64,195.5,3.74]
[1735667629557,32.73562567,195.64,195.55,2.5607]
[1735667629757,2.62237901,195.63,195.55,2.5607]
[1735667629951,2.5601,195.6,195.55,2.5607]
[1735667630147,32.73562567,195.64,195.5,3.74]
[1735667630460,2.5597,195.64,195.5,36.47562567]
[1735667630855,32.73562567,195.67,195.5,36.47562567]
[1735667631057,32.73562567,195.64,195.5,3.74]
[1735667631957,2.5597,195.64,195.59,2.5602]
[1735667632155,5.7617,195.68,195.59,3.74]
[1735667632355,2.62717551,195.67,195.59,3.74]
[1735667632551,2.5593,195.66,195.59,3.74]
[1735667632858,5.7617,195.68,195.59,3.74]
[1735667633155,8.3209,195.68,195.62,2.5597]
[1735667634357,1.9057,195.76,195.59,36.47562567]
[1735667634559,2.63312352,195.75,195.6,3.9819]
[1735667634765,5.9103,195.76,195.64,2.5594]
[1735667634766,2.5587,195.71,195.64,2.5594]
[1735667634953,32.73562567,195.74,195.65,3.74]
[1735667635163,2.63488133,195.73,195.65,3.74]
[1735667635463,2.63488133,195.72,195.65,3.74]
[1735667635661,5.9103,195.76,195.65,3.74]
[1735667635662,2.5593,195.66,195.65,3.74]
[1735667636163,2.5591,195.68,195.65,3.74]
[1735667636560,32.73562567,195.74,195.65,3.74]
[1735667636862,2.5591,195.68,195.65,3.74]
[1735667637358,2.5593,195.66,195.61,2.5598]
[1735667637667,2.5593,195.66,195.62,3.74]
[1735667638165,2.5594,195.65,195.62,3.74]
[1735667638958,20.10630241,195.72,195.62,3.74]
[1735667639155,2.63611184,195.71,195.62,3.74]
[1735667639367,2.63611184,195.7,195.62,3.74]
[1735667639562,2.63611184,195.69,195.62,3.74]
[1735667639858,2.63611184,195.69,195.61,2.5599]
[1735667639859,2.63611184,195.68,195.55,20.10630241]
[1735667640064,2.63670011,195.67,195.59,2.5601]
[1735667640255,2.63670011,195.66,195.59,2.5601]
[1735667640462,20.10630241,195.69,195.59,2.5601]
[1735667640764,2.63613073,195.68,195.59,2.5601]
[1735667640965,2.63613073,195.67,195.59,2.5601]
[1735667641163,2.5596,195.64,195.59,2.5601]
[1735667641555,2.5599,195.62,195.58,2.5603]
[1735667641754,20.10630241,195.66,195.52,3.74]